fUST/lending_fUST_20250609
["ID","MTS","AMOUNT","RATE_DAILY","PERIOD"]
[365071247,1749441039659,-514.56,0.00020273,2]
[365071249,1749441039669,-440.0,0.00020273,2]
[365071251,1749441039679,-440.0,0.00020273,2]
[365071252,1749441039688,-1267.89,0.00020273,2]
[365071253,1749441039698,-558.43,0.00020273,2]
[365071254,1749441039707,-552.85,0.00020273,2]
[365071255,1749441039717,-721.41,0.00020273,2]
[365071256,1749441039727,-853.62,0.00020273,2]
[365071257,1749441039736,-150.18,0.00020273,2]
[365071258,1749441039746,-613.71,0.00020273,2]
[365071259,1749441039755,-1118.23,0.00020273,2]
[365071260,1749441039765,-842.01,0.00020273,2]
[365071261,1749441039775,-768.94,0.00020273,2]
[365071262,1749441039784,-957.59,0.00020273,2]
[365071263,1749441039793,-440.0,0.00020273,2]
[365071264,1749441039803,-440.0,0.00020273,2]
[365071265,1749441039813,-349.55864652,0.00020417,3]
[365071266,1749441039826,-440.0,0.00020547,2]
[365071267,1749441039836,-440.0,0.00020547,2]
[365071268,1749441039846,-440.0,0.00020547,2]
[365071269,1749441039855,-694.91,0.00020547,2]
[365071270,1749441039867,-440.0,0.00020547,2]
[365071271,1749441039877,-514.56,0.00020547,2]
[365071272,1749441039887,-551.9,0.00020547,2]
[365071273,1749441039896,-440.0,0.00020547,2]
[365071274,1749441039907,-1267.89,0.00020547,2]
[365071275,1749441039918,-558.43,0.00020547,2]
[365071276,1749441039927,-552.85,0.00020547,2]
[365071277,1749441039937,-721.41,0.00020547,2]
[365071278,1749441039947,-853.62,0.00020547,2]
[365071279,1749441039957,-613.71,0.00020547,2]
[365071280,1749441039967,-1118.23,0.00020547,2]
[365071281,1749441039977,-842.01,0.00020547,2]
[365071282,1749441039987,-768.94,0.00020547,2]
[365071283,1749441039997,-957.59,0.00020547,2]
[365071284,1749441040007,-440.0,0.00020547,2]
[365071285,1749441040017,-440.0,0.00020547,2]
[365071286,1749441040027,-349.55864652,0.0002059,3]
[365071287,1749441040038,-834.7738823,0.00020711,2]
[365071288,1749441040048,-213.08899333,0.00020711,2]
[365071289,1749441040058,-160.0,0.00020711,2]
[365071290,1749441040068,-160.0,0.00020711,2]
[365071291,1749441040078,-229.64266968,0.00020711,2]
[365071292,1749441040087,-842.5625,0.00020711,2]
[365071293,1749441040097,-424.05420114,0.00020711,2]
[365071294,1749441040107,-512.9403448,0.00020739,2]
[365071295,1749441040117,-349.55864652,0.00020762,3]
[365071296,1749441040127,-307.36,0.00020811,10]
[365071297,1749441040137,-362.28884101,0.00020821,2]
[365071298,1749441040146,-440.0,0.00020821,2]
[365071299,1749441040157,-440.0,0.00020821,2]
[365071300,1749441040167,-694.91,0.00020821,2]
[365071301,1749441040178,-440.0,0.00020821,2]
[365071302,1749441040189,-514.56,0.00020821,2]
[365071303,1749441040199,-440.0,0.00020821,2]
[365071304,1749441040208,-1267.89,0.00020821,2]
[365071305,1749441040218,-558.43,0.00020821,2]
[365071306,1749441040227,-552.85,0.00020821,2]
[365071307,1749441040237,-721.41,0.00020821,2]
[365071308,1749441040247,-853.62,0.00020821,2]
[365071309,1749441040417,-613.71,0.00020821,2]
[365071310,1749441040427,-1118.23,0.00020821,2]
[365071311,1749441040440,-842.01,0.00020821,2]
[365071312,1749441040450,-768.94,0.00020821,2]
[365071313,1749441040460,-957.59,0.00020821,2]
[365071314,1749441040470,-440.0,0.00020821,2]
[365071315,1749441040480,-440.0,0.00020821,2]
[365071316,1749441040490,-166.52594702,0.00020871,2]
[365071317,1749441040500,-349.55864652,0.00020934,4]
[365071318,1749441040510,-440.0,0.00021095,2]
[365071319,1749441040519,-440.0,0.00021095,2]
[365071320,1749441040528,-694.91,0.00021095,2]
[365071321,1749441040538,-440.0,0.00021095,2]
[365071322,1749441040548,-514.56,0.00021095,2]
[365071323,1749441040559,-440.0,0.00021095,2]
[365071324,1749441040569,-1267.89,0.00021095,2]
[365071325,1749441040578,-558.43,0.00021095,2]
[365071326,1749441040590,-552.85,0.00021095,2]
[365071327,1749441040601,-721.41,0.00021095,2]
[365071328,1749441040610,-853.62,0.00021095,2]
[365071329,1749441040620,-613.71,0.00021095,2]
[365071330,1749441040630,-1118.23,0.00021095,2]
[365071331,1749441040640,-842.01,0.00021095,2]
[365071332,1749441040649,-768.94,0.00021095,2]
[365071333,1749441040659,-957.59,0.00021095,2]
[365071334,1749441040668,-440.0,0.00021095,2]
[365071335,1749441040677,-440.0,0.00021095,2]
[365071336,1749441040687,-349.55864652,0.00021107,4]
[365071337,1749441040697,-349.55864652,0.00021279,5]
[365071338,1749441040713,-500.0,0.00021368,2]
[365071339,1749441040729,-500.0,0.00021368,2]
[365071340,1749441040739,-477.58418018,0.00021368,2]
[365071341,1749441040749,-500.0,0.00021368,2]
[365071342,1749441040759,-500.0,0.00021368,2]
[365071343,1749441040770,-500.0,0.00021368,2]
[365071344,1749441040779,-500.0,0.00021368,2]
[365071345,1749441040789,-500.0,0.00021368,2]
[365071346,1749441040800,-500.0,0.00021368,2]
[365071347,1749441040810,-500.0,0.00021368,2]
[365071348,1749441040820,-500.0,0.00021368,2]
[365071349,1749441040830,-500.0,0.00021368,2]
[365071350,1749441040840,-500.0,0.00021368,2]
[365071351,1749441040850,-500.0,0.00021368,2]
[365071352,1749441040860,-546.44299948,0.00021368,2]
[365071353,1749441040870,-500.0,0.00021368,2]
[365071354,1749441040880,-500.0,0.00021368,2]
[365071355,1749441040890,-440.0,0.00021369,2]
[365071356,1749441040900,-440.0,0.00021369,2]
[365071357,1749441040910,-694.91,0.00021369,2]
[365071358,1749441040920,-440.0,0.00021369,2]
[365071359,1749441040930,-514.56,0.00021369,2]
[365071360,1749441040940,-418.7,0.00021369,2]
[365071361,1749441040950,-1267.89,0.00021369,2]
[365071362,1749441040960,-558.43,0.00021369,2]
[365071363,1749441040970,-552.85,0.00021369,2]
[365071364,1749441040980,-721.41,0.00021369,2]
[365071365,1749441040991,-853.62,0.00021369,2]
[365071366,1749441041001,-613.71,0.00021369,2]
[365071367,1749441041011,-1118.23,0.00021369,2]
[365071368,1749441041021,-842.01,0.00021369,2]
[365071369,1749441041031,-768.94,0.00021369,2]
[365071370,1749441041042,-957.59,0.00021369,2]
[365071371,1749441041051,-440.0,0.00021369,2]
[365071372,1749441041061,-440.0,0.00021369,2]
[365071373,1749441041071,-333.0,0.000214,2]
[365071374,1749441041081,-349.55864652,0.00021452,5]
[365071375,1749441041091,-2380.45724693,0.00021563,2]
[365071376,1749441041101,-349.55864652,0.00021624,5]
[365071377,1749441041111,-384.76,0.00021643,2]
[365071378,1749441041121,-200.39386945,0.00021643,2]
[365071379,1749441041131,-694.91,0.00021643,2]
[365071380,1749441041142,-440.0,0.00021643,2]
[365071381,1749441041151,-514.56,0.00021643,2]
[365071382,1749441041161,-1267.89,0.00021643,2]
[365071383,1749441041171,-558.43,0.00021643,2]
[365071384,1749441041182,-552.85,0.00021643,2]
[365071385,1749441041192,-721.41,0.00021643,2]
[365071386,1749441041202,-853.62,0.00021643,2]
[365071387,1749441041212,-613.71,0.00021643,2]
[365071388,1749441041221,-1118.23,0.00021643,2]
[365071389,1749441041231,-842.01,0.00021643,2]
[365071390,1749441041241,-768.94,0.00021643,2]
[365071391,1749441041251,-957.59,0.00021643,2]
[365071392,1749441041260,-440.0,0.00021643,2]
[365071393,1749441041269,-255.43952314,0.00021643,2]
[365071394,1749441041279,-166.52594702,0.00021768,2]
[365071395,1749441041289,-349.55864652,0.00021797,6]
[365071396,1749441041298,-1006.0,0.000218,6]
[365071397,1749441041308,-694.91,0.00021917,2]
[365071398,1749441041317,-440.0,0.00021917,2]
[365071399,1749441041327,-514.56,0.00021917,2]
[365071400,1749441041336,-1267.89,0.00021917,2]
[365071401,1749441041346,-558.43,0.00021917,2]
[365071402,1749441041355,-552.85,0.00021917,2]
[365071403,1749441041365,-500.0,0.00021917,2]
[365071404,1749441041374,-500.0,0.00021917,2]
[365071405,1749441041384,-500.0,0.00021917,2]
[365071406,1749441041394,-500.0,0.00021917,2]
[365071407,1749441041404,-500.0,0.00021917,2]
[365071408,1749441041413,-500.0,0.00021917,2]
[365071409,1749441041423,-500.0,0.00021917,2]
[365071410,1749441041433,-500.0,0.00021917,2]
[365071411,1749441041448,-500.0,0.00021917,2]
[365071412,1749441041457,-500.0,0.00021917,2]
[365071413,1749441041469,-500.0,0.00021917,2]
[365071414,1749441041478,-721.41,0.00021917,2]
[365071415,1749441041488,-500.0,0.00021917,2]
[365071416,1749441041497,-853.62,0.00021917,2]
[365071417,1749441041507,-613.71,0.00021917,2]
[365071418,1749441041517,-1118.23,0.00021917,2]
[365071419,1749441041526,-842.01,0.00021917,2]
[365071420,1749441041536,-768.94,0.00021917,2]
[365071421,1749441041546,-957.59,0.00021917,2]
[365071422,1749441041556,-440.0,0.00021917,2]
[365071423,1749441041565,-196.90732924,0.00021918,2]
[365071424,1749441041575,-500.0,0.00021918,2]
[365071425,1749441041584,-296.71829651,0.00021918,2]
[365071426,1749441041594,-500.0,0.00021918,2]
[365071427,1749441041604,-500.0,0.00021918,2]
[365071428,1749441041614,-500.0,0.00021918,2]
[365071429,1749441041623,-500.0,0.00021918,2]
[365071430,1749441041633,-500.0,0.00021918,2]
[365071431,1749441041643,-587.0,0.00021946,2]
[365071432,1749441041653,-349.55864652,0.00021969,6]
[365071433,1749441041663,-272.0,0.00022,2]
[365071434,1749441041675,-9029.0,0.00022,2]
[365071435,1749441041685,-171.0,0.00022,2]
[365071436,1749441041695,-349.55864652,0.00022141,6]
[365071437,1749441041704,-694.91,0.00022191,4]
[365071438,1749441041714,-440.0,0.00022191,4]
[365071439,1749441041724,-514.56,0.00022191,4]
[365071440,1749441041734,-1267.89,0.00022191,4]
[365071441,1749441041743,-558.43,0.00022191,4]
[365071442,1749441041753,-552.85,0.00022191,4]
[365071443,1749441041762,-169.69308883,0.00022191,4]
[365071444,1749441041772,-721.41,0.00022191,4]
[365071445,1749441041782,-853.62,0.00022191,4]
[365071446,1749441041791,-613.71,0.00022191,4]
[365071447,1749441041801,-1118.23,0.00022191,4]
[365071448,1749441041811,-842.01,0.00022191,4]
[365071449,1749441041820,-768.94,0.00022191,4]
[365071450,1749441041829,-957.59,0.00022191,4]
[365071451,1749441041839,-440.0,0.00022191,4]
[365071452,1749441041848,-200.46604529,0.000222,69]
[365071453,1749441041857,-349.55864652,0.00022314,7]
[365071454,1749441041867,-756.63782133,0.0002234,2]
[365071455,1749441041876,-500.0,0.00022392,2]
[365071456,1749441041886,-500.0,0.0002244,2]
[365071457,1749441041895,-500.0,0.0002244,2]
[365071458,1749441041905,-503.43476677,0.00022453,2]
[365071459,1749441041914,-500.0,0.00022453,2]
[365071460,1749441041924,-623.62627761,0.00022453,2]
[365071461,1749441041933,-500.0,0.00022453,2]
[365071462,1749441041942,-504.28435098,0.00022453,2]
[365071463,1749441041952,-500.0,0.00022453,2]
[365071464,1749441041961,-400.0,0.00022465,2]
[365071465,1749441041971,-400.0,0.00022465,2]
[365071466,1749441041981,-400.0,0.00022465,2]
[365071467,1749441041990,-400.0,0.00022465,2]
[365071468,1749441042000,-400.0,0.00022465,2]
[365071469,1749441042010,-400.0,0.00022465,2]
[365071470,1749441042019,-400.0,0.00022465,2]
[365071471,1749441042029,-400.0,0.00022465,2]
[365071472,1749441042038,-400.0,0.00022465,2]
[365071473,1749441042048,-400.0,0.00022465,2]
[365071474,1749441042057,-400.0,0.00022465,2]
[365071475,1749441042067,-400.0,0.00022465,2]
[365071476,1749441042077,-400.0,0.00022465,2]
[365071477,1749441042087,-694.91,0.00022465,4]
[365071478,1749441042097,-440.0,0.00022465,4]
[365071479,1749441042106,-514.56,0.00022465,4]
[365071480,1749441042115,-1267.89,0.00022465,4]
[365071481,1749441042125,-558.43,0.00022465,4]
[365071482,1749441042134,-552.85,0.00022465,4]
[365071483,1749441042144,-721.41,0.00022465,4]
[365071484,1749441042154,-500.0,0.00022465,2]
[365071485,1749441042165,-853.62,0.00022465,4]
[365071486,1749441042175,-613.71,0.00022465,4]
[365071487,1749441042185,-1118.23,0.00022465,4]
[365071488,1749441042196,-842.01,0.00022465,4]
[365071489,1749441042207,-768.94,0.00022465,4]
[365071490,1749441042218,-957.59,0.00022465,4]
[365071492,1749441042228,-440.0,0.00022465,4]
[365071494,1749441042239,-349.55864652,0.00022486,7]
[365071496,1749441042249,-160.0,0.00022622,3]
[365071497,1749441042260,-364.9269501,0.00022658,2]
[365071498,1749441042270,-364.9269501,0.00022658,2]
[365071499,1749441042280,-364.9269501,0.00022658,2]
[365071500,1749441042290,-179.4069173,0.00022658,2]
[365071501,1749441042300,-349.55864652,0.00022659,7]
[365071502,1749441042311,-166.52594702,0.00022665,2]
[365071503,1749441042320,-333.0,0.000227,7]
[365071504,1749441042330,-400.0,0.00022739,2]
[365071505,1749441042340,-694.91,0.00022739,4]
[365071506,1749441042354,-440.0,0.00022739,4]
[365071507,1749441042365,-514.56,0.00022739,4]
[365071508,1749441042374,-1267.89,0.00022739,4]
[365071509,1749441042384,-558.43,0.00022739,4]
[365071510,1749441042394,-552.85,0.00022739,4]
[365071511,1749441042404,-721.41,0.00022739,4]
[365071512,1749441042413,-853.62,0.00022739,4]
[365071513,1749441042423,-613.71,0.00022739,4]
[365071514,1749441042433,-1118.23,0.00022739,4]
[365071515,1749441042446,-842.01,0.00022739,4]
[365071516,1749441042456,-768.94,0.00022739,4]
[365071517,1749441042465,-957.59,0.00022739,4]
[365071518,1749441042475,-440.0,0.00022739,4]
[365071519,1749441042486,-500.0,0.00022793,2]
[365071520,1749441042495,-500.0,0.00022793,2]
[365071521,1749441042505,-349.55864652,0.00022831,8]
[365071522,1749441042516,-756.63782132,0.00022867,2]
[365071523,1749441042526,-153.0,0.00022932,2]
[365071525,1749441042536,-371.3541853,0.00022932,2]
[365071527,1749441042546,-158.7201836,0.00022932,2]
[365071529,1749441042555,-153.0,0.00022932,2]
[365071531,1749441042565,-158.7201836,0.00022932,2]
[365071532,1749441042574,-158.7201836,0.00022932,2]
[365071534,1749441042584,-158.7201836,0.00022932,2]
[365071536,1749441042594,-153.0,0.00022932,2]
[365071537,1749441042604,-322.2578335,0.00022932,2]
[365071538,1749441042614,-153.0,0.00022932,2]
[365071539,1749441042624,-153.0,0.00022932,2]
[365071540,1749441042634,-153.0,0.00022932,2]
[365071541,1749441042644,-1000.0,0.0002294,2]
[365071542,1749441042653,-1003.34321714,0.00022988,2]
[365071543,1749441042663,-1000.0,0.00022988,2]
[365071544,1749441042673,-1000.0,0.00023001,2]
[365071545,1749441042683,-592.40210575,0.00023001,2]
[365071546,1749441042693,-349.55864652,0.00023003,8]
[365071548,1749441042703,-400.0,0.00023013,2]
[365071549,1749441042712,-694.91,0.00023013,4]
[365071550,1749441042722,-440.0,0.00023013,4]
[365071551,1749441042731,-514.56,0.00023013,4]
[365071552,1749441042741,-1267.89,0.00023013,4]
[365071553,1749441042751,-558.43,0.00023013,4]
[365071555,1749441042760,-552.85,0.00023013,4]
[365071557,1749441042769,-721.41,0.00023013,4]
[365071559,1749441042779,-500.0,0.00023013,2]
[365071561,1749441042788,-853.62,0.00023013,4]
[365071563,1749441042798,-613.71,0.00023013,4]
[365071565,1749441042808,-1118.23,0.00023013,4]
[365071567,1749441042817,-842.01,0.00023013,4]
[365071569,1749441042828,-768.94,0.00023013,4]
[365071571,1749441042838,-957.59,0.00023013,4]
[365071573,1749441042848,-440.0,0.00023013,4]
[365071575,1749441042858,-162.55636836,0.00023096,2]
[365071577,1749441042867,-5000.0,0.00023164,2]
[365071579,1749441042877,-500.0,0.00023164,2]
[365071581,1749441042886,-500.0,0.00023164,2]
[365071583,1749441042896,-500.0,0.00023164,2]
[365071585,1749441042905,-207.4,0.00023164,2]
[365071587,1749441042915,-500.0,0.00023164,2]
[365071589,1749441042924,-500.0,0.00023164,2]
[365071591,1749441042934,-500.0,0.00023164,2]
[365071593,1749441042944,-500.0,0.00023164,2]
[365071595,1749441042953,-500.0,0.00023164,2]
[365071598,1749441042962,-500.0,0.00023164,2]
[365071601,1749441042972,-500.0,0.00023164,2]
[365071604,1749441042982,-500.0,0.00023164,2]
[365071606,1749441042992,-500.0,0.00023164,2]
[365071608,1749441043002,-500.0,0.00023164,2]
[365071610,1749441043011,-500.0,0.00023164,2]
[365071612,1749441043021,-500.0,0.00023164,2]
[365071614,1749441043031,-500.0,0.00023171,2]
[365071616,1749441043040,-349.55864652,0.00023176,8]
[365071618,1749441043050,-54762.03508609,0.00023187,2]
[365071620,1749441043059,-206.0,0.0002321,2]
[365071622,1749441043069,-1043.75508845,0.00023233,120]
[365071624,1749441043079,-400.0,0.00023287,2]
[365071626,1749441043088,-694.91,0.00023287,4]
[365071628,1749441043098,-440.0,0.00023287,4]
[365071630,1749441043107,-514.56,0.00023287,4]
[365071632,1749441043117,-1267.89,0.00023287,4]
[365071635,1749441043127,-558.43,0.00023287,4]
[365071637,1749441043136,-552.85,0.00023287,4]
[365071639,1749441043146,-721.41,0.00023287,4]
[365071641,1749441043155,-853.62,0.00023287,4]
[365071643,1749441043164,-613.71,0.00023287,4]
[365071645,1749441043175,-1118.23,0.00023287,4]
[365071647,1749441043184,-842.01,0.00023287,4]
[365071649,1749441043194,-768.94,0.00023287,4]
[365071650,1749441043203,-957.59,0.00023287,4]
[365071651,1749441043213,-440.0,0.00023287,4]
[365071652,1749441043223,-227.42880251,0.00023307,2]
[365071653,1749441043233,-500.0,0.00023307,2]
[365071654,1749441043242,-515.99395455,0.00023335,5]
[365071655,1749441043252,-252.34158606,0.00023341,2]
[365071656,1749441043261,-1002.01390923,0.00023341,2]
[365071657,1749441043271,-349.55864652,0.00023348,9]
[365071658,1749441043280,-756.63782132,0.00023393,2]
[365071659,1749441043289,-162.55636836,0.00023397,2]
[365071660,1749441043299,-162.55636836,0.00023397,2]
[365071661,1749441043309,-206.0,0.0002348,2]
[365071662,1749441043319,-1552.94390741,0.00023488,2]
[365071663,1749441043328,-349.55864652,0.00023521,9]
[365071664,1749441043337,-1500.0,0.00023536,2]
[365071665,1749441043347,-1500.0,0.00023549,2]
[365071666,1749441043356,-219278.47198,0.0002356,2]
[365071667,1749441043365,-200.0,0.00023561,2]
[365071668,1749441043375,-200.0,0.00023561,2]
[365071669,1749441043384,-200.0,0.00023561,2]
[365071670,1749441043393,-200.0,0.00023561,2]
[365071671,1749441043402,-200.0,0.00023561,2]
[365071672,1749441043411,-200.0,0.00023561,2]
[365071673,1749441043543,-200.0,0.00023561,2]
[365071674,1749441043553,-200.0,0.00023561,2]
[365071675,1749441043562,-200.0,0.00023561,2]
[365071676,1749441043572,-200.0,0.00023561,2]
[365071677,1749441043582,-200.0,0.00023561,2]
[365071678,1749441043592,-200.0,0.00023561,4]
[365071679,1749441043601,-262.38163176,0.00023561,4]
[365071680,1749441043611,-400.0,0.00023561,2]
[365071681,1749441043621,-694.91,0.00023561,4]
[365071682,1749441043631,-440.0,0.00023561,4]
[365071683,1749441043641,-514.56,0.00023561,4]
[365071684,1749441043652,-1267.89,0.00023561,4]
[365071685,1749441043661,-558.43,0.00023561,4]
[365071686,1749441043671,-552.85,0.00023561,4]
[365071687,1749441043683,-721.41,0.00023561,4]
[365071688,1749441043693,-500.0,0.00023561,2]
[365071689,1749441043703,-853.62,0.00023561,4]
[365071690,1749441043712,-613.71,0.00023561,4]
[365071691,1749441043722,-1118.23,0.00023561,4]
[365071692,1749441043732,-842.01,0.00023561,4]
[365071693,1749441043741,-768.94,0.00023561,4]
[365071694,1749441043751,-957.59,0.00023561,4]
[365071695,1749441043761,-440.0,0.00023561,4]
[365071696,1749441043771,-166.52594702,0.00023561,2]
[365071697,1749441043780,-504.30310197,0.00023573,2]
[365071698,1749441043790,-505.68047554,0.00023573,2]
[365071699,1749441043799,-501.4219546,0.00023573,2]
[365071700,1749441043810,-502.37355897,0.00023573,2]
[365071701,1749441043820,-501.54162577,0.00023573,2]
[365071702,1749441043830,-600.0,0.00023573,2]
[365071703,1749441043840,-600.0,0.00023585,2]
[365071704,1749441043850,-375.0171255,0.00023589,2]
[365071705,1749441043860,-364.9269501,0.00023589,2]
[365071706,1749441043870,-364.9269501,0.00023589,2]
[365071707,1749441043879,-364.9269501,0.00023589,2]
[365071708,1749441043890,-364.9269501,0.00023589,2]
[365071709,1749441043899,-364.9269501,0.00023589,2]
[365071710,1749441043909,-160.0,0.00023594,4]
[365071711,1749441043918,-349.55864652,0.00023693,9]
[365071712,1749441043928,-2000.0,0.00023698,7]
[365071713,1749441043938,-2000.0,0.00023698,7]
[365071714,1749441043948,-1014.58021333,0.00023698,7]
[365071715,1749441043958,-162.55636836,0.00023699,2]
[365071716,1749441043968,-162.55636836,0.00023699,2]
[365071717,1749441043979,-162.55636836,0.00023699,2]
[365071718,1749441043989,-5000.0,0.00023712,2]
[365071719,1749441043998,-1000.0,0.00023719,2]
[365071720,1749441044007,-176.7945792,0.00023726,2]
[365071721,1749441044017,-158.7201836,0.00023726,2]
[365071722,1749441044027,-573.244939,0.00023726,2]
[365071723,1749441044038,-1146.489878,0.00023726,2]
[365071724,1749441044048,-353.5891585,0.00023726,2]
[365071725,1749441044058,-176.7945792,0.00023726,2]
[365071726,1749441044068,-158.7201836,0.00023726,2]
[365071727,1749441044077,-573.244939,0.00023726,2]
[365071728,1749441044086,-573.244939,0.00023726,2]
[365071729,1749441044097,-295.9215313,0.00023726,2]
[365071730,1749441044106,-176.7945791,0.00023726,2]
[365071731,1749441044116,-306.0,0.00023726,2]
[365071732,1749441044125,-165.9511691,0.00023726,2]
[365071733,1749441044136,-153.0,0.00023726,2]
[365071734,1749441044145,-153.0,0.00023726,2]
[365071735,1749441044155,-206.0,0.0002375,2]
[365071736,1749441044167,-153.0,0.00023753,2]
[365071737,1749441044177,-153.0,0.00023753,2]
[365071738,1749441044187,-153.0,0.00023753,2]
[365071739,1749441044199,-153.0,0.00023753,2]
[365071740,1749441044208,-153.0,0.00023753,2]
[365071741,1749441044218,-153.0,0.00023753,2]
[365071742,1749441044228,-153.0,0.00023753,2]
[365071743,1749441044238,-153.0,0.00023753,2]
[365071744,1749441044247,-153.0,0.00023753,2]
[365071745,1749441044259,-153.0,0.00023753,2]
[365071746,1749441044269,-153.0,0.00023753,2]
[365071747,1749441044279,-153.0,0.00023753,2]
[365071748,1749441044289,-153.0,0.00023753,2]
[365071749,1749441044298,-153.0,0.00023753,2]
[365071750,1749441044308,-153.0,0.00023753,2]
[365071751,1749441044318,-153.0,0.00023753,2]
[365071752,1749441044328,-153.0,0.00023753,2]
[365071753,1749441044338,-153.0,0.00023753,2]
[365071754,1749441044347,-153.0,0.00023753,2]
[365071755,1749441044357,-153.0,0.00023753,2]
[365071756,1749441044367,-153.0,0.00023753,2]
[365071757,1749441044376,-412.8782008,0.00023753,2]
[365071758,1749441044385,-54762.03508608,0.00023823,2]
[365071759,1749441044394,-600.0,0.00023831,2]
[365071760,1749441044404,-400.0,0.00023835,2]
[365071761,1749441044413,-694.91,0.00023835,4]
[365071762,1749441044423,-440.0,0.00023835,4]
[365071763,1749441044432,-514.56,0.00023835,4]
[365071764,1749441044444,-1267.89,0.00023835,4]
[365071765,1749441044455,-558.43,0.00023835,4]
[365071766,1749441044465,-552.85,0.00023835,4]
[365071767,1749441044474,-721.41,0.00023835,4]
[365071768,1749441044484,-853.62,0.00023835,4]
[365071769,1749441044495,-613.71,0.00023835,4]
[365071770,1749441044505,-1118.23,0.00023835,4]
[365071771,1749441044516,-842.01,0.00023835,4]
[365071772,1749441044525,-768.94,0.00023835,4]
[365071773,1749441044535,-957.59,0.00023835,4]
[365071774,1749441044545,-470.54618697,0.00023835,4]
[365071775,1749441044554,-1000.0,0.00023855,2]
[365071776,1749441044564,-349.55864652,0.00023866,10]
[365071777,1749441044574,-333.0,0.000239,7]
[365071778,1749441044584,-189.79670953,0.000239,2]
[365071779,1749441044593,-5391.0,0.00023912,7]
[365071780,1749441044603,-756.63782132,0.0002392,2]
[365071781,1749441044613,-823.0,0.00023934,2]
[365071782,1749441044622,-5391.0,0.00023941,7]
[365071783,1749441044632,-5391.0,0.0002397,7]
[365071784,1749441044642,-5391.0,0.00023999,7]
[365071785,1749441044651,-53498.02,0.00024,7]
[365071786,1749441044661,-2300.0,0.00024,120]
[365071787,1749441044671,-153.0,0.00024,2]
[365071788,1749441044680,-834.7738823,0.00024,7]
[365071789,1749441044689,-153.0,0.00024,2]
[365071790,1749441044699,-153.0,0.00024,2]
[365071791,1749441044708,-206.0,0.0002402,2]
[365071792,1749441044717,-162.55636836,0.00024027,2]
[365071793,1749441044727,-162.55636836,0.00024027,2]
[365071794,1749441044737,-5394.68256307,0.00024028,7]
[365071795,1749441044746,-349.55864652,0.00024038,10]
[365071796,1749441044755,-200.0,0.00024056,2]
[365071797,1749441044765,-109350.09912642,0.0002406,7]
[365071798,1749441044775,-500.0,0.00024073,2]
[365071799,1749441044784,-500.0,0.00024073,2]
[365071800,1749441044794,-1641.777614,0.00024073,3]
[365071801,1749441044803,-600.0,0.00024077,2]
[365071802,1749441044813,-2000.0,0.00024084,2]
[365071803,1749441044822,-55455.41,0.000241,2]
[365071804,1749441044832,-200.50968493,0.00024108,2]
[365071805,1749441044842,-400.0,0.00024109,2]
[365071806,1749441044851,-694.91,0.00024109,4]
[365071807,1749441044860,-440.0,0.00024109,4]
[365071808,1749441044869,-514.56,0.00024109,4]